Cogmind - Beta 13 @@@ ROGUE MODE // 2024.03.17 @ 13:09:55 Player: Sara Result: Destroyed by E1-JV5(R) with Subdweller Machine Gun Performance ------------- Evolutions (0) 0 Regions Visited (2) 400 Robots Destroyed (32) 160 Value Destroyed (921) 921 Prototype IDs (1) 20 Alien Tech Used (0) 0 Bonus (-48) -48 TOTAL SCORE: 1453 Bonus ------- Friendly Fire -48 Cogmind --------- Core Integrity 0/250 Matter 300/300 Energy 150/150 System Corruption 2% Temperature Cool (0) Movement Core (950) Ox18 Location -10/Subcaves Parts ------- > --- POWER (1) -------- Light Angular Momentum Engine > --- PROPULSION (2) --- (None) > --- UTILITY (2) ------ High-capacity Storage Unit Signal Interpreter > --- WEAPON (2) ------- Subdweller Beam Cannon > --- INVENTORY (20) --- Subdweller Power Source Subdweller Power Source Subdweller Power Source Subdweller Monowheel Improved Heat Sink Disposable Heat Sink Medium Storage Unit Weight Redist. System Subdweller Optics Utility Shielding Scrap Shield Scrap Shield Hacking Suite Subdweller Beam Cannon Subdweller Beam Cannon Battle Rifle Scrap Shield Fragment (49) Scrap Shield Fragment (48) Peak State ------------ > --- POWER ------------ Light Angular Momentum Engine > --- PROPULSION ------- Spiked Treads > --- UTILITY ---------- High-capacity Storage Unit Signal Interpreter > --- WEAPON ----------- Subdweller Beam Cannon Flamer > --- INVENTORY -------- Subdweller Power Source Subdweller Power Source Subdweller Power Source Subdweller Monowheel Improved Heat Sink Disposable Heat Sink Medium Storage Unit Weight Redist. System Subdweller Optics Utility Shielding Scrap Shield Scrap Shield Hacking Suite Subdweller Beam Cannon Subdweller Beam Cannon Battle Rifle Scrap Shield Fragment Scrap Shield Fragment [Rating: 17] Favorites ----------- Power Ion Engine Engine Ion Engine Propulsion Light Treads Treads Light Treads Leg Aluminum Leg Wheel Subdweller Monowheel Utility High-capacity Storage Unit Storage High-capacity Storage Unit Processor Signal Interpreter Protection Utility Shielding Weapon Shotgun Energy Gun Medium Laser Energy Cannon Subdweller Beam Cannon Ballistic Gun Shotgun Special Weapon Flamer Build | -11 -10 -10 ------- Run | Yrd Mat Sub Slots Evolved . | . . . Power . | . . . Propulsion . | . . . Utility . | . . . Weapon . | . . . Parts Attached 36 | 4 20 12 Power 7 | 1 2 4 Engine 7 | 1 2 4 Core . | . . . Reactor . | . . . Propulsion 11 | 2 6 3 Treads 7 | 2 4 1 Leg 2 | . 2 . Wheel 2 | . . 2 Hover . | . . . Flight . | . . . Utility 5 | 1 4 . Device . | . . . Storage 3 | 1 2 . Processor 1 | . 1 . Hackware . | . . . Protection 1 | . 1 . Artifact . | . . . Weapon 13 | . 8 5 Energy Gun 3 | . 3 . Energy Cannon 1 | . . 1 Ballistic Gun 8 | . 5 3 Ballistic Cannon . | . . . Launcher . | . . . Special Weapon 1 | . . 1 Impact Weapon . | . . . Slashing Weapon . | . . . Piercing Weapon . | . . . Special Melee Weapon . | . . . Unidentified Prototypes 1 | . 1 . Parts Lost 12 | . 3 9 Power 2 | . 1 1 Propulsion 3 | . . 3 Utility . | . . . Weapon 7 | . 2 5 Highest Loss Streak 3 | . 1 3 To Critical Strikes 1 | . . 1 Average Slot Usage (%) 91 | . 96 87 Engine 14 | . 14 14 Treads 19 | . 17 21 Leg 3 | . 9 . Storage 14 | . 14 14 Processor 8 | . 1 14 Protection 4 | . 10 . Energy Cannon 3 | . . 6 Ballistic Gun 19 | . 26 14 Naked Turns . | . . . Heaviest Build 59 | 10 52 59 Greatest Support 40 | 40 40 40 Greatest Overweight (x) 18 | . 1 18 Average Overweight (x) . | . . 1 Largest Inventory Capacity 20 | 8 20 20 Average Capacity 16 | 6 11 20 Most Carried 20 | 8 12 20 Average Carried 14 | 5 9 17 Final Capacity 20 | 8 20 20 Final Carried 20 | 8 11 20 Class Distribution -------------------- 97% | Mutant Dominant Class ---------------- Mutant | -10/Materials Mutant | -10/Subcaves Resources | -11 -10 -10 ----------- Run | Yrd Mat Sub Matter Collected 1267 | 74 690 503 Remotely . | . . . Salvage Created 1222 | . 786 436 Parts 63 | . 37 26 Haulers Intercepted 2 | . 2 . Recyclers Shooed 2 | . 2 . Parts Field Recycled . | . . . Retrieved Matter . | . . . Parts Self-Destructed 15 | . . 15 Prevented . | . . . Kills | -11 -10 -10 ------- Run | Yrd Mat Sub Combat Hostiles Destroyed 24 | . 12 12 Guns 22 | . 12 10 Cannons 2 | . . 2 Classes Destroyed 8 | . 6 2 Hauler 2 | . 2 . Recycler 3 | . 3 . Operator 1 | . 1 . Watcher 2 | . 2 . Swarmer 3 | . 3 . Grunt 10 | . 9 1 Sentry 1 | . . 1 Subdweller 10 | . . 10 Best Kill Streak 4 | . 4 2 Combat Bots Only 3 | . 3 2 Max Kills in Single Turn 1 | . 1 1 Gunslinging . | . . . Exploded . | . . . Melee . | . . . Uniques/NPCs Destroyed . | . . . Combat | -11 -10 -10 -------- Run | Yrd Mat Sub Hostile Shots Fired 176 | . 78 98 Missed 45 | . 15 30 Damage Taken 2024 | . 707 1317 Core 256 | . 76 180 Absorbed by Shields . | . . . Redirected to Shielding 3 | . 3 . Regen/Repaired (Parts) 89 | . 89 . Core Remaining (%) 100 | 100 . . Volleys Fired 118 | . 63 55 Largest 2 | . 2 2 Hottest 103 | . 70 103 Shots Fired 216 | . 126 90 Gun 205 | . 126 79 Cannon 11 | . . 11 Launcher . | . . . Special . | . . . Kinetic 194 | . 115 79 Thermal 14 | . 3 11 Explosive . | . . . Electromagnetic 8 | . 8 . Robot Hit Streak 14 | . 13 14 Robot Miss Streak 5 | . 3 5 Penetration Max . | . . . Secondary Targets 1 | . . 1 Max Gunslinging Chain 1 | . . 1 Shots Hit Robots 169 | . 94 75 Core Hits 67 | . 37 30 Critical Kills 2 | . 2 . Critical Parts Destroyed 1 | . 1 . Critical Strikes 4 | . 3 1 Destroy 4 | . 3 1 Melee Attacks . | . . . Impact . | . . . Slashing . | . . . Piercing . | . . . Sneak Attacks . | . . . Combat Hostiles . | . . . Follow-up Attacks . | . . . Damage Inflicted 2687 | . 1379 1308 Guns 2439 | . 1334 1105 Cannons 203 | . . 203 Explosions 45 | . 45 . Melee . | . . . Ramming . | . . . Kinetic 2290 | . 1185 1105 Thermal 260 | . 57 203 Explosive . | . . . Electromagnetic 137 | . 137 . Impact . | . . . Slashing . | . . . Piercing . | . . . Highest Corruption 2 | . 2 2 Average Corruption 2 | . 2 2 Corruption Purged . | . . . Corruption Blocked . | . . . Effects 52 | . 6 46 Message Errors 22 | . 4 18 Matter Fused 12 | . 1 11 Heat Flow Errors 6 | . 1 5 Energy Discharges 5 | . . 5 Parts Fused 1 | . . 1 Data Loss (minor) 3 | . . 3 Data Loss (major) 1 | . . 1 Misfires 2 | . . 2 Overload Shots . | . . . Overflow Damage . | . . . Projectiles . | . . . Explosions . | . . . Melee . | . . . Knockbacks . | . . . Impact . | . . . Kinetic . | . . . Secondary . | . . . Self-Inflicted Damage 32 | . 32 . Shots 1 | . 1 . Rammed . | . . . Targets Rammed . | . . . Kicked . | . . . Crushed . | . . . Highest Temperature 157 | . 88 157 Average Temperature 36 | . 29 48 Received Heat Transfer 585 | . 333 252 Siege Activations . | . . . Robots Corrupted . | . . . Combat Hostiles . | . . . Parts Fried . | . . . Impact Corruptions . | . . . Robots Melted . | . . . Combat Hostiles . | . . . Parts Melted 1 | . . 1 Heat Transferred 346 | . 87 259 Parts Sabotaged . | . . . Parts Stolen . | . . . Parts Stripped . | . . . Power Chain Reactions 1 | . 1 . Alert | -11 -10 -10 ------- Run | Yrd Mat Sub Peak Influence 249 | . 249 . Initial . | . . . Average 54 | . 56 . Maximum Alert Level 1 | . 1 . Low Security (%) 92 | 100 92 . Level 1 7 | . 7 . Level 2 . | . . . Level 3 . | . . . Level 4 . | . . . Level 5 . | . . . High Security . | . . . Max Security . | . . . Squads Dispatched 3 | . 3 . Investigation 1 | . 1 . Extermination . | . . . Reinforcement 2 | . 2 . Assault . | . . . Garrison . | . . . Intercept . | . . . Searches Triggered . | . . . Construction Impeded . | . . . Haulers Reinforced . | . . . Active Scanning Responses . | . . . Cargo Convoy Interrupts . | . . . Stealth | -11 -10 -10 --------- Run | Yrd Mat Sub Distress Signals . | . . . Communications Jammed . | . . . Distress Signals . | . . . Times Spotted 44 | . 22 22 Peak Tracking Total 5 | . 5 5 Tactical Retreats . | . . . Traps | -11 -10 -10 ------- Run | Yrd Mat Sub Traps Triggered 1 | . 1 . Indirectly . | . . . Trap Hack Attempts . | . . . Triggered . | . . . Disarmed . | . . . Reprogrammed . | . . . Reused . | . . . Traps Extracted . | . . . Installed . | . . . Triggered . | . . . Machines | -11 -10 -10 ---------- Run | Yrd Mat Sub Machines Disabled 1 | . 1 . Max in Single Turn 1 | . 1 . Machines Repaired . | . . . Machines Dismantled . | . . . Machines Sabotaged . | . . . Overloaded Fab Kills . | . . . Hacking | -11 -10 -10 --------- Run | Yrd Mat Sub Machines Accessed 6 | . 6 . Terminals 3 | . 3 . Fabricators . | . . . Repair Stations 1 | . 1 . Recycling Units 2 | . 2 . Scanalyzers . | . . . Garrison Access . | . . . Total Hacks 25 | . 25 . Successful 10 | . 10 . Failed 15 | . 15 . Catastrophic 1 | . 1 . Database Lockouts . | . . . Manual 14 | . 14 . Terminals 15 | . 15 . Fabricators . | . . . Repair Stations 4 | . 4 . Recycling Units 6 | . 6 . Scanalyzers . | . . . Garrison Access . | . . . Terminal Hacks 6 | . 6 . Robot Analysis 3 | . 3 . Alert Level 1 | . 1 . Transport Status 1 | . 1 . Registered Components 1 | . 1 . Fabricator Hacks . | . . . Repair Station Hacks 2 | . 2 . Scan Component 1 | . 1 . Repair 1 | . 1 . Recycling Unit Hacks 1 | . 1 . Retrieve Components 1 | . 1 . Scanalyzer . | . . . Garrison Access Hacks . | . . . Unauthorized Hacks 1 | . 1 . Terminals . | . . . Fabricators . | . . . Repair Stations . | . . . Recycling Units 1 | . 1 . Reject 1 | . 1 . Scanalyzers . | . . . Garrison Access . | . . . Data Cores Recovered . | . . . Used . | . . . Hacking Detections 6 | . 6 . Full Trace Events 3 | . 3 . Feedback Events . | . . . Feedback Blocked . | . . . Robot Schematics Acquired . | . . . Robots Built . | . . . Authchips . | . . . Time . | . . . Total Robot Build Rating . | . . . Part Schematics Acquired . | . . . Parts Built . | . . . Authchips . | . . . Time . | . . . Total Part Build Rating . | . . . Parts Repaired 1 | . 1 . Time 26 | . 26 . Parts Recycled . | . . . Recycled Matter . | . . . Retrieved Matter . | . . . Retrieved Components 10 | . 10 . Parts Scanalyzed . | . . . Part Schematics Acquired . | . . . Parts Damaged . | . . . Bothacking | -11 -10 -10 ------------ Run | Yrd Mat Sub Used RIF Installer . | . . . Robots Hacked . | . . . Non-combat . | . . . Combat . | . . . Robot Hacks Applied . | . . . Relay Couplers Released . | . . . Fabnet Peak Effective % . | . . . Robots Rewired . | . . . Allies Hacked . | . . . Hacks Repelled . | . . . Allies | -11 -10 -10 -------- Run | Yrd Mat Sub Total Allies . | . . . Largest Group . | . . . Highest-Rated Group . | . . . Highest-Rated Ally . | . . . Total Orders . | . . . Ally Attacks . | . . . Total Damage . | . . . Kills . | . . . Allies Corrupted . | . . . Allies Melted . | . . . Intel | -11 -10 -10 ------- Run | Yrd Mat Sub Robot Analysis Total 3 | . 3 . Derelict Logs Recovered 1 | . . 1 Drone Launches . | . . . Drone Recoveries . | . . . Exploration | -11 -10 -10 ------------- Run | Yrd Mat Sub Turns Passed 5054 | 75 2039 2940 Spaces Moved 1990 | 51 920 1019 Core 21 | 20 . 1 Treads 1468 | 31 540 897 Legs 380 | . 380 . Wheels 121 | . . 121 Hover . | . . . Flight . | . . . Fastest Speed 50 | 50 120 130 Average Speed 224 | 116 182 268 Slowest Speed 950 | 160 240 950 Overloaded Moves . | . . . Propulsion Burnouts . | . . . Robots Hopped . | . . . Cave-ins Triggered . | . . . Exploration Rate (%) 51 | 3 86 65 Regions Visited 2 Branch Regions 1 Pre-discovered Areas . | . . . Known Exits Taken 1 | . 1 . Unknown Exits Taken 1 | 1 . . Scrap Searched 1 | . . 1 Spaces Dug . | . . . Terrain Destroyed 9 | . 5 4 Melee . | . . . Projectile 4 | . . 4 AOE 5 | . 5 . Terrain Rammed . | . . . Walls Destroyed . | . . . Machines Disabled . | . . . Actions | -11 -10 -10 --------- Run | Yrd Mat Sub Total 2370 | 67 1164 1139 Wait 133 | . 114 19 Move 1988 | 50 919 1019 Hop . | . . . Pick Up 57 | 12 24 21 Fast Attach 11 | 1 7 3 Attach 15 | 3 5 7 Detach 1 | . . 1 Swap 10 | . 8 2 Drop 37 | 1 24 12 Fire 118 | . 63 55 Melee . | . . . Ram . | . . . Kick . | . . . Crush . | . . . Escape Stasis . | . . . Rewire . | . . . Trap . | . . . Miscellaneous . | . . . Route ------- -11/Scrapyard -10/Materials (discovered 4 exits: [*Mat x2] / *Min / *Sub) -10/Subcaves (discovered 1 exit: *Mat) History --------- Turn | Location | Event 10 | -11/Scrapyard | Discovered new exit (range 13) 76 | -11/Scrapyard | Entered Materials 308 | -10/Materials | Build established: Mutant 633 | -10/Materials | Repaired Lgt. Treads 777 | -10/Materials | Discovered new exit (range 10) 1515 | -10/Materials | Discovered new exit (range 13) 1725 | -10/Materials | Discovered new exit (range 10) 1864 | -10/Materials | Discovered new exit (range 10) 1913 | -10/Materials | Identified exit to Subcaves 1961 | -10/Materials | Identified exit to Mines 2115 | -10/Materials | Entered Subcaves 2235 | -10/Subcaves | Ambushed by swarm of Subdwellers 2965 | -10/Subcaves | Lost 4 allies 3064 | -10/Subcaves | A swath of the cavern ceiling suddenly collapsed 3627 | -10/Subcaves | Core integrity fell below 50% 3655 | -10/Subcaves | Lost 3 parts (1n2w) 3750 | -10/Subcaves | Core integrity fell below 20% 4621 | -10/Subcaves | Discovered new exit (range 5) 4631 | -10/Subcaves | Identified exit to Materials 5055 | -10/Subcaves | Destroyed by E1-JV5(R) with Subdweller Machine Gun Last Messages --------------- 04900_ Searching scrap... 04900_ Found Flamer. 04900_ Found 23 Matter. 04903_ 0Z-8UL(O) collects matter. 04907_ Acquired Flamer. 04909_ FGRTZRHZNUMU,N>IMD9P